[Event "IIFL Wealth 4th Mumbai Open"]
[Site "Mumbai"]
[Date "2019.01.06"]
[Round "8"]
[White "Vahdatian, Davood"]
[Black "Pawar, Harshit"]
[Result "1-0"]
[ECO "A13"]
[WhiteElo "2036"]
[BlackElo "1719"]
[Annotator "NA"]
[PlyCount "67"]
[EventDate "2018.12.30"]
[EventType "swiss"]
[EventCountry "IND"]
[SourceTitle "playchess.com"]
[Source "ChessBase"]
[SourceQuality "1"]
[TimeControl "40/5400+30:1800+30"]

1. c4 {[%emt 0:02:28]} e6 {[%emt 0:00:44]} 2. g3 {[%emt 0:00:33]} d5 {[%emt 0:01:15]} 3. Bg2 {[%emt 0:00:07]} Nf6 {[%emt 0:02:58]} 4. Nf3 {[%emt 0:00:34]} c6 {[%emt 0:04:08]} 5. O-O {[%emt 0:00:09]} Bd6 {[%emt 0:03:06]} 6. cxd5 {[%emt 0:01:11]} exd5 {[%emt 0:02:25]} 7. b3 {[%emt 0:00:43]} O-O {[%emt 0:03:15]} 8. Bb2 {[%emt 0:00:02]} Bf5 {[%emt 0:03:48]} 9. d3 {[%emt 0:00:22]} Nbd7 {[%emt 0:02:59]} 10. Nbd2 {[%emt 0:00:03]} Qc7 {[%emt 0:03:43]} 11. Rc1 {[%emt 0:01:21]} Bg6 {[%emt 0:03:15]} 12. Nh4 {[%emt 0:00:48]} Be5 {[%emt 0:03:30]} 13. d4 {[%emt 0:00:58]} Bd6 {[%emt 0:00:41]} 14. Nxg6 {[%emt 0:00:07]} hxg6 {[%emt 0:02:23]} 15. e4 {[%emt 0:00:19]} dxe4 {[%emt 0:02:18]} 16. Nxe4 {[%emt 0:00:03]} Nxe4 {[%emt 0:03:10]} 17. Bxe4 {[%emt 0:00:02]} Nf6 {[%emt 0:01:31]} 18. Bf3 {[%emt 0:01:54]} Qa5 {[%emt 0:02:04]} 19. a3 {[%emt 0:00:16]} g5 {[%emt 0:04:14]} 20. d5 {[%emt 0:02:17]} Nxd5 {[%emt 0:12:01]} 21. Qd4 {[%emt 0:06:13]} f6 {[%emt 0:01:13]} 22. b4 {[%emt 0:01:01]} Qb5 {[%emt 0:02:27]} 23. Qg4 {[%emt 0:02:43]} Rae8 {[%emt 0:14:50]} 24. Be4 {[%emt 0:03:12]} Kf7 {[%emt 0:12:57]} 25. Qh5+ {[%emt 0:05:01]} Ke7 {[%emt 0:00:49]} 26. Bg6 {[%emt 0:03:54]} Rd8 {[%emt 0:03:18]} 27. Qg4 {[%emt 0:03:16]} Rd7 {[%emt 0:01:54]} 28. Bf5 {[%emt 0:03:21]} Rc7 {[%emt 0:00:40]} 29. Qe4+ {[%emt 0:06:47]} Kd8 {[%emt 0:00:52]} 30. Qe6 {[%emt 0:00:15]} Be7 {[%emt 0:01:15]} 31. Rfd1 {[%emt 0:00:35]} Re8 {[%emt 0:00:45]} 32. a4 {[%emt 0:02:25]} Qxa4 {[%emt 0:01:00]} 33. Rxd5+ {[%emt 0:00:17]} cxd5 {[%emt 0:00:29]} 34. Qc8+ {[%emt 0:00:02]} 1-0

[Event "IIFL Wealth 4th Mumbai Open"]
[Site "Mumbai"]
[Date "2019.01.06"]
[Round "8"]
[White "Samrat, Ghorai"]
[Black "Sa, Kannan"]
[Result "1-0"]
[ECO "B00"]
[WhiteElo "1984"]
[BlackElo "2069"]
[Annotator "NA"]
[PlyCount "83"]
[EventDate "2018.12.30"]
[EventType "swiss"]
[EventCountry "IND"]
[SourceTitle "playchess.com"]
[Source "ChessBase"]
[SourceQuality "1"]
[TimeControl "40/5400+30:1800+30"]

1. e4 {[%emt 0:00:00]} d6 {[%emt 0:06:26]} 2. c4 {[%emt 0:00:24]} Nf6 {[%emt 0:01:13]} 3. Nc3 {[%emt 0:00:09]} g6 {[%emt 0:00:18]} 4. g3 {[%emt 0:00:11]} h5 {[%emt 0:01:36]} 5. h3 {[%emt 0:00:22]} e5 {[%emt 0:05:33]} 6. Bg2 {[%emt 0:01:44]} c5 {[%emt 0:01:53]} 7. d3 {[%emt 0:03:36]} Nc6 {[%emt 0:07:30]} 8. Bg5 {[%emt 0:06:28]} Be7 {[%emt 0:00:34]} 9. Qd2 {[%emt 0:07:36]} Be6 {[%emt 0:08:17]} 10. Be3 {[%emt 0:22:57]} Nd4 {[%emt 0:04:06]} 11. f4 {[%emt 0:01:22]} Qd7 {[%emt 0:02:01]} 12. Nd5 {[%emt 0:14:31]} Bxd5 {[%emt 0:15:58]} 13. cxd5 {[%emt 0:01:15]} Qa4 {[%emt 0:01:29]} 14. Bxd4 {[%emt 0:00:13]} cxd4 {[%emt 0:02:06]} 15. Nf3 {[%emt 0:00:58]} Nd7 {[%emt 0:02:08]} 16. O-O {[%emt 0:02:26]} Rc8 {[%emt 0:09:49]} 17. h4 {[%emt 0:14:46]} Nf6 {[%emt 0:14:25]} 18. fxe5 {[%emt 0:06:25]} Rc2 {[%emt 0:04:10]} 19. b3 {[%emt 0:04:31]} Rxd2 {[%emt 0:00:19]} 20. bxa4 {[%emt 0:00:02]} Rxg2+ {[%emt 0:00:12]} 21. Kxg2 {[%emt 0:00:03]} Ng4 {[%emt 0:00:16]} 22. Rfc1 {[%emt 0:00:16]} Kd7 {[%emt 0:02:41]} 23. Rab1 {[%emt 0:00:29]} b6 {[%emt 0:01:02]} 24. exd6 {[%emt 0:04:24]} Bxd6 {[%emt 0:00:02]} 25. Nxd4 {[%emt 0:00:44]} g5 {[%emt 0:01:14]} 26. hxg5 {[%emt 0:01:20]} h4 {[%emt 0:00:23]} 27. gxh4 {[%emt 0:01:02]} Rxh4 {[%emt 0:00:03]} 28. Rh1 {[%emt 0:00:33]} Nh2 {[%emt 0:00:17]} 29. Nf3 {[%emt 0:02:14]} Rg4+ {[%emt 0:00:30]} 30. Kf2 {[%emt 0:00:17]} Nxf3 {[%emt 0:01:04]} 31. Kxf3 {[%emt 0:00:14]} Rg3+ {[%emt 0:00:12]} 32. Kf2 {[%emt 0:02:26]} Rxg5 {[%emt 0:00:03]} 33. d4 {[%emt 0:00:25]} Rg4 {[%emt 0:00:55]} 34. e5 {[%emt 0:00:12]} Be7 {[%emt 0:00:10]} 35. Rbd1 {[%emt 0:01:08]} f6 {[%emt 0:05:56]} 36. Rh7 {[%emt 0:00:35]} fxe5 {[%emt 0:01:14]} 37. dxe5 {[%emt 0:00:04]} Ke8 {[%emt 0:00:22]} 38. d6 {[%emt 0:00:25]} Bh4+ {[%emt 0:00:05]} 39. Kf3 {[%emt 0:00:36]} Rxa4 {[%emt 0:00:15]} 40. d7+ {[%emt 0:00:00]} Kd8 {[%emt 0:00:00]} 41. Rh8+ {[%emt 0:00:11]} Kc7 {[%emt 0:00:19]} 42. Rxh4 {[%emt 0:00:08]} 1-0

[Event "IIFL Wealth 4th Mumbai Open"]
[Site "Mumbai"]
[Date "2019.01.06"]
[Round "8"]
[White "Dave Sneh"]
[Black "Adireddy Tarun"]
[Result "0-1"]
[ECO "E21"]
[WhiteElo "1873"]
[BlackElo "1661"]
[Annotator "NA"]
[PlyCount "156"]
[EventDate "2018.12.30"]
[EventType "swiss"]
[EventCountry "IND"]
[SourceTitle "playchess.com"]
[Source "ChessBase"]
[SourceQuality "1"]
[TimeControl "40/5400+30:1800+30"]

1. d4 {[%emt 0:00:00]} Nf6 {[%emt 0:00:50]} 2. c4 {[%emt 0:00:00]} e6 {[%emt 0:00:08]} 3. Nf3 {[%emt 0:00:00]} Bb4+ {[%emt 0:00:08]} 4. Nc3 {[%emt 0:00:00]} b6 {[%emt 0:00:08]} 5. Bg5 {[%emt 0:00:00]} Bb7 {[%emt 0:00:09]} 6. e3 {[%emt 0:01:47]} h6 {[%emt 0:00:06]} 7. Bxf6 {[%emt 0:00:22]} Qxf6 {[%emt 0:00:11]} 8. Rc1 {[%emt 0:00:13]} O-O {[%emt 0:01:51]} 9. Be2 {[%emt 0:01:04] E12: Queen's Indian: Unusual White 4th moves, 4 a3, 4 Nc3 Bb7 5 a3 and 4 Nc3 Bb7} d6 {[%emt 0:06:35]} 10. O-O {[%emt 0:06:34]} Qe7 $146 {[%emt 0:00:40]} ({Predecessor:} 10... Bxc3 11. Rxc3 Nd7 12. Nd2 c5 13. Bf3 cxd4 14. exd4 Bxf3 15. Nxf3 Rfc8 16. Qd3 Rc7 {1-0 (59) Zhou,J (2572)-Yu,Y (2657) Shenzhen 2013}) 11. Na4 {[%emt 0:08:19]} c5 {[%emt 0:10:22]} 12. a3 {[%emt 0:20:16]} Ba5 {[%emt 0:00:16]} 13. b3 {[%emt 0:00:11]} e5 {[%emt 0:01:59]} 14. d5 {[%emt 0:02:46]} e4 {[%emt 0:00:51]} 15. Nd2 {[%emt 0:02:41]} Bxd2 {[%emt 0:00:10]} 16. Qxd2 {[%emt 0:00:02]} Nd7 {[%emt 0:06:52]} 17. Nc3 {[%emt 0:00:22]} Bc8 {[%emt 0:06:32]} 18. Rce1 {[%emt 0:01:28]} f5 {[%emt 0:07:43]} 19. f3 {[%emt 0:01:05]} Nf6 {[%emt 0:01:59]} 20. Bd1 {[%emt 0:03:11]} exf3 {[%emt 0:03:01]} 21. gxf3 {[%emt 0:12:34]} Bd7 {[%emt 0:02:53]} 22. Kh1 {[%emt 0:01:24]} Kh8 {[%emt 0:02:00]} 23. Rg1 {[%emt 0:00:49]} Rae8 {[%emt 0:00:41]} 24. Qf2 {[%emt 0:01:51]} Nh7 {[%emt 0:01:59]} 25. Bc2 {[%emt 0:04:59]} Ng5 {[%emt 0:04:31]} 26. Qg3 {[%emt 0:01:54]} Qf6 {[%emt 0:00:51]} 27. h4 {[%emt 0:08:35]} Nxf3 {[%emt 0:01:02]} 28. Qxf3 {[%emt 0:01:02]} Qxc3 {[%emt 0:00:10]} 29. Qg3 {[%emt 0:04:15]} Qf6 {[%emt 0:07:27]} 30. Qf2 {[%emt 0:08:14]} Re5 {[%emt 0:04:43]} 31. Qf4 {[%emt 0:01:31]} Be8 {[%emt 0:11:34]} 32. Rg3 {[%emt 0:02:22]} Bh5 {[%emt 0:00:32]} 33. Reg1 {[%emt 0:00:47]} Bg4 {[%emt 0:01:18]} 34. Kg2 {[%emt 0:04:25]} Qxh4 {[%emt 0:00:18]} 35. Bd1 {[%emt 0:01:27]} Qe7 {[%emt 0:01:04]} 36. Bxg4 {[%emt 0:00:32]} fxg4 {[%emt 0:00:12]} 37. Qxg4 {[%emt 0:00:14]} Rxe3 {[%emt 0:00:27]} 38. Kh3 {[%emt 0:00:46]} Rxg3+ {[%emt 0:01:58]} 39. Rxg3 {[%emt 0:00:08]} Qf6 {[%emt 0:02:39]} 40. Kh2 {[%emt 0:00:00]} Qf2+ {[%emt 0:00:00]} 41. Rg2 {[%emt 0:01:45]} Qf4+ {[%emt 0:01:06]} 42. Qxf4 {[%emt 0:00:35]} Rxf4 {[%emt 0:00:02]} 43. Kg3 {[%emt 0:00:01]} Rd4 {[%emt 0:01:49]} 44. Re2 {[%emt 0:01:34]} Rd3+ {[%emt 0:00:38]} 45. Kf4 {[%emt 0:00:12]} Rxb3 {[%emt 0:01:27]} 46. Kf5 {[%emt 0:00:18]} Rf3+ {[%emt 0:04:50]} 47. Kg6 {[%emt 0:03:29]} Rf6+ {[%emt 0:00:39]} 48. Kh5 {[%emt 0:00:03]} Kg8 {[%emt 0:01:46]} 49. Re7 {[%emt 0:00:16]} Rf5+ {[%emt 0:00:10]} 50. Kg4 {[%emt 0:00:24]} Rf7 {[%emt 0:13:10]} 51. Re8+ {[%emt 0:00:06]} Kh7 {[%emt 0:00:11]} 52. Rd8 {[%emt 0:00:55]} Rf6 {[%emt 0:00:06]} 53. Rd7 {[%emt 0:00:18]} Kg6 {[%emt 0:04:28]} 54. Rxa7 {[%emt 0:00:06]} h5+ {[%emt 0:00:10]} 55. Kg3 {[%emt 0:00:09]} Rf7 {[%emt 0:01:05]} 56. Ra8 {[%emt 0:00:30]} Kf6 $19 {[%emt 0:00:44]} 57. Rb8 {[%emt 0:02:06]} g5 {[%emt 0:01:28]} 58. Rxb6 {[%emt 0:00:09]} Ke5 {[%emt 0:00:01]} 59. Rb8 {[%emt 0:00:48]} Ra7 {[%emt 0:01:06]} 60. Re8+ {[%emt 0:01:06]} Kd4 {[%emt 0:00:03]} 61. Re6 {[%emt 0:01:21]} Rxa3+ {[%emt 0:00:01]} 62. Kf2 {[%emt 0:00:01]} Ra6 {[%emt 0:00:20]} 63. Rg6 {[%emt 0:00:10]} Kxc4 {[%emt 0:00:13]} 64. Rxg5 {[%emt 0:00:04]} h4 {[%emt 0:00:21]} 65. Ke3 {[%emt 0:00:25]} Ra3+ {[%emt 0:01:09]} 66. Ke4 {[%emt 0:00:09]} Rd3 {[%emt 0:00:16]} 67. Rg1 {[%emt 0:00:34]} Rd4+ {[%emt 0:00:09]} 68. Ke3 {[%emt 0:00:22]} Kxd5 {[%emt 0:00:17]} 69. Rg6 {[%emt 0:00:31]} Re4+ {[%emt 0:00:05]} 70. Kd3 {[%emt 0:00:00]} c4+ {[%emt 0:00:06]} 71. Kc3 {[%emt 0:00:00]} Re3+ {[%emt 0:00:39]} 72. Kd2 {[%emt 0:00:00]} Rd3+ {[%emt 0:00:08]} 73. Kc2 {[%emt 0:00:00]} h3 {[%emt 0:00:06]} 74. Rg4 {[%emt 0:00:05]} Rf3 {[%emt 0:00:48]} 75. Rh4 {[%emt 0:00:28]} Kc5 {[%emt 0:00:23]} 76. Rh6 {[%emt 0:00:17]} d5 {[%emt 0:00:23]} 77. Rh8 {[%emt 0:00:02]} Rf2+ {[%emt 0:00:20]} 78. Kb1 {[%emt 0:00:16]} h2 {[%emt 0:00:07]} 0-1

[Event "IIFL Wealth 4th Mumbai Open"]
[Site "Mumbai"]
[Date "2019.01.06"]
[Round "8"]
[White "Kothari, Swapnil"]
[Black "Bajaj Prakhar"]
[Result "1-0"]
[ECO "D31"]
[WhiteElo "1870"]
[BlackElo "1584"]
[Annotator "NA"]
[PlyCount "89"]
[EventDate "2018.12.30"]
[EventType "swiss"]
[EventCountry "IND"]
[SourceTitle "playchess.com"]
[Source "ChessBase"]
[SourceQuality "1"]
[TimeControl "40/5400+30:1800+30"]

1. d4 {[%emt 0:00:05]} d5 {[%emt 0:00:00]} 2. c4 {[%emt 0:00:06]} e6 {[%emt 0:00:00]} 3. Nc3 {[%emt 0:00:05]} c6 {[%emt 0:00:44]} 4. e3 {[%emt 0:01:26]} f5 {[%emt 0:00:34]} 5. Nf3 {[%emt 0:00:12]} Nf6 {[%emt 0:00:16]} 6. Ne5 {[%emt 0:00:23]} Bd6 {[%emt 0:01:31]} 7. f4 {[%emt 0:00:13]} O-O {[%emt 0:00:27]} 8. Bd3 {[%emt 0:00:29]} Ne4 {[%emt 0:00:27]} 9. O-O {[%emt 0:00:13]} Nd7 {[%emt 0:00:48]} 10. Qb3 {[%emt 0:01:07]} Ndf6 {[%emt 0:01:42]} 11. a4 {[%emt 0:07:22]} Bxe5 {[%emt 0:07:29]} 12. dxe5 {[%emt 0:02:42]} Nc5 {[%emt 0:01:24]} 13. Qc2 {[%emt 0:00:28]} Nxd3 {[%emt 0:00:01]} 14. Qxd3 {[%emt 0:05:13]} Ne4 {[%emt 0:00:52]} 15. Nxe4 {[%emt 0:01:44]} dxe4 {[%emt 0:00:38]} 16. Qc2 {[%emt 0:00:42]} c5 {[%emt 0:01:25]} 17. Rd1 {[%emt 0:03:01]} Qe7 {[%emt 0:01:53]} 18. Bd2 {[%emt 0:03:41]} Rd8 {[%emt 0:04:33]} 19. Bc3 {[%emt 0:00:32]} Bd7 {[%emt 0:02:52]} 20. Rd6 {[%emt 0:00:20]} Bc6 {[%emt 0:00:04]} 21. Rad1 {[%emt 0:00:21]} Rd7 {[%emt 0:06:33]} 22. b4 {[%emt 0:06:08]} Rxd6 {[%emt 0:02:48]} 23. exd6 {[%emt 0:01:55]} Qe8 {[%emt 0:00:22]} 24. b5 {[%emt 0:03:27]} Bd7 {[%emt 0:00:47]} 25. Qb2 {[%emt 0:05:59]} Qh5 {[%emt 0:06:58]} 26. Rf1 {[%emt 0:09:40]} Qh6 {[%emt 0:03:12]} 27. a5 {[%emt 0:01:18]} Kf7 {[%emt 0:03:04]} 28. Qa3 {[%emt 0:06:54]} Rc8 {[%emt 0:01:20]} 29. Bb2 {[%emt 0:04:54]} g5 {[%emt 0:00:31]} 30. fxg5 {[%emt 0:04:29]} Qxg5 {[%emt 0:00:17]} 31. Qc3 {[%emt 0:00:13]} Rg8 {[%emt 0:00:20]} 32. Rf2 {[%emt 0:00:02]} h5 {[%emt 0:01:37]} 33. Qe5 {[%emt 0:01:02]} b6 {[%emt 0:01:04]} 34. Qxe4 {[%emt 0:00:22]} Rd8 {[%emt 0:03:29]} 35. h4 {[%emt 0:01:58]} Qg4 {[%emt 0:00:11]} 36. Qe5 {[%emt 0:00:45]} Qg6 {[%emt 0:00:27]} 37. e4 {[%emt 0:04:05]} Re8 {[%emt 0:00:32]} 38. Rf3 {[%emt 0:00:12]} Rg8 {[%emt 0:00:20]} 39. Rg3 {[%emt 0:00:19]} Qh6 {[%emt 0:00:54]} 40. Rxg8 {[%emt 0:00:00]} Kxg8 {[%emt 0:00:00]} 41. exf5 {[%emt 0:10:43]} exf5 {[%emt 0:00:23]} 42. Qe7 {[%emt 0:07:11]} Be6 {[%emt 0:01:18]} 43. d7 {[%emt 0:01:16]} Qe3+ {[%emt 0:00:37]} 44. Kh1 {[%emt 0:00:04]} Qe1+ {[%emt 0:01:39]} 45. Kh2 {[%emt 0:00:07]} 1-0

[Event "IIFL Wealth 4th Mumbai Open"]
[Site "Mumbai"]
[Date "2019.01.06"]
[Round "8"]
[White "Aditya Varun Gampa"]
[Black "Shivasubramanian R"]
[Result "1-0"]
[ECO "C11"]
[WhiteElo "1809"]
[BlackElo "1738"]
[Annotator "NA"]
[PlyCount "175"]
[EventDate "2018.12.30"]
[EventType "swiss"]
[EventCountry "IND"]
[SourceTitle "playchess.com"]
[Source "ChessBase"]
[SourceQuality "1"]
[TimeControl "40/5400+30:1800+30"]

1. e4 {[%emt 0:00:00]} e6 {[%emt 0:00:00]} 2. d4 {[%emt 0:01:11]} d5 {[%emt 0:00:00]} 3. Nc3 {[%emt 0:00:11]} Nf6 {[%emt 0:00:00]} 4. e5 {[%emt 0:00:08]} Nfd7 {[%emt 0:00:00]} 5. Nce2 {[%emt 0:02:02]} c5 {[%emt 0:00:21]} 6. c3 {[%emt 0:00:02]} Nc6 {[%emt 0:00:07]} 7. a3 {[%emt 0:00:07]} Be7 {[%emt 0:03:39] C11: French: Classical System: 4 e5 and 4 Bg5 dxe4} 8. Nf3 {[%emt 0:01:20]} cxd4 {[%emt 0:09:22]} 9. cxd4 {[%emt 0:00:50]} O-O {[%emt 0:04:02]} 10. Nf4 {[%emt 0:01:06]} Nb6 {[%emt 0:02:45]} 11. h4 $146 {[%emt 0:04:30]} ({Predecessor:} 11. Bd3 f5 12. h4 Bd7 13. Kf1 Rc8 14. b3 a5 15. Bd2 a4 16. bxa4 {1-0 (40) Grischuk,A (2772)-Potkin,V (2574) Riadh 2017}) 11... f6 {[%emt 0:14:59]} 12. Bd3 {[%emt 0:05:17]} f5 {[%emt 0:02:54]} 13. g4 {[%emt 0:14:59]} Qe8 {[%emt 0:11:10]} 14. gxf5 {[%emt 0:02:09]} exf5 {[%emt 0:00:05]} 15. Be3 {[%emt 0:03:44]} Qf7 {[%emt 0:04:11]} 16. Ng5 {[%emt 0:03:51]} Bxg5 {[%emt 0:01:34]} 17. hxg5 {[%emt 0:00:35]} g6 {[%emt 0:01:51]} 18. Rh6 {[%emt 0:02:40]} Nd8 {[%emt 0:01:45]} 19. Ke2 {[%emt 0:02:31]} Ne6 {[%emt 0:00:55]} 20. Qh1 {[%emt 0:01:17]} Nxf4+ {[%emt 0:00:48]} 21. Bxf4 {[%emt 0:00:17]} Be6 {[%emt 0:00:33]} 22. Qh3 {[%emt 0:02:08]} Rfc8 {[%emt 0:01:25]} 23. Rh1 {[%emt 0:01:49]} Rc7 {[%emt 0:00:24]} 24. b3 {[%emt 0:04:24]} Rd8 {[%emt 0:18:42]} 25. Bd2 {[%emt 0:02:27]} Nc8 {[%emt 0:02:59]} 26. f4 {[%emt 0:02:08]} Rdd7 {[%emt 0:04:11]} 27. Bb5 {[%emt 0:02:32]} Rd8 {[%emt 0:00:11]} 28. Bd3 {[%emt 0:01:29]} Rdd7 {[%emt 0:00:26]} 29. a4 {[%emt 0:00:57]} a6 {[%emt 0:03:31]} 30. Bb4 {[%emt 0:00:51]} Rc6 {[%emt 0:02:48]} 31. Bc5 {[%emt 0:01:07]} Rcc7 {[%emt 0:02:51]} 32. a5 {[%emt 0:00:26]} Rc6 {[%emt 0:02:09]} 33. b4 {[%emt 0:01:11]} Rcc7 {[%emt 0:01:12]} 34. Qe3 {[%emt 0:00:44]} Rd8 {[%emt 0:02:35]} 35. Qh3 {[%emt 0:00:56]} Rdd7 {[%emt 0:00:05]} 36. Kd2 {[%emt 0:00:25]} Rd8 {[%emt 0:01:40]} 37. Be2 {[%emt 0:01:14]} Rdd7 {[%emt 0:01:01]} 38. Rh2 {[%emt 0:03:08]} Rd8 {[%emt 0:00:21]} 39. Qf3 {[%emt 0:00:35]} Rdd7 {[%emt 0:00:13]} 40. Qh1 {[%emt 0:00:00]} Rd8 {[%emt 0:00:00]} 41. R2h3 {[%emt 0:02:17]} Rdd7 {[%emt 0:00:36]} 42. Bd1 {[%emt 0:01:37]} Rd8 {[%emt 0:00:12]} 43. Ba4 {[%emt 0:00:47]} Qg7 {[%emt 0:00:02]} 44. Bd1 {[%emt 0:02:10]} Qf7 {[%emt 0:00:08]} 45. Bh5 {[%emt 0:03:07]} gxh5 {[%emt 0:01:30]} 46. R3xh5 {[%emt 0:03:35]} Qd7 {[%emt 0:03:52]} 47. g6 {[%emt 0:03:32]} Qa4 {[%emt 0:00:43]} 48. Qb1 {[%emt 0:01:29]} Rdd7 {[%emt 0:00:42]} 49. Qc2 {[%emt 0:02:50]} Qxc2+ {[%emt 0:04:25]} 50. Kxc2 {[%emt 0:00:01]} Kh8 {[%emt 0:00:01]} 51. g7+ {[%emt 0:00:33]} Rxg7 {[%emt 0:00:15]} 52. Rxe6 {[%emt 0:00:06]} Ne7 {[%emt 0:02:26]} 53. Kd2 {[%emt 0:00:42]} Ng8 {[%emt 0:01:21]} 54. Rxf5 {[%emt 0:01:55]} Rg2+ {[%emt 0:00:07]} 55. Ke3 {[%emt 0:00:12]} Rcg7 {[%emt 0:00:03]} 56. Rg5 {[%emt 0:00:01]} R7xg5 {[%emt 0:00:23]} 57. fxg5 {[%emt 0:00:11]} Rxg5 {[%emt 0:00:03]} 58. Re8 $18 {[%emt 0:00:55]} h5 {[%emt 0:00:34]} 59. Rf8 {[%emt 0:02:04]} h4 {[%emt 0:00:23]} 60. Rf4 {[%emt 0:02:11]} Rh5 {[%emt 0:00:19]} 61. Kf2 {[%emt 0:00:40]} h3 {[%emt 0:01:14]} 62. Kg1 {[%emt 0:00:06]} h2+ {[%emt 0:00:41]} 63. Kh1 {[%emt 0:00:01]} Nh6 {[%emt 0:00:10]} 64. e6 {[%emt 0:02:03]} Nf5 {[%emt 0:00:16]} 65. Rg4 {[%emt 0:01:11]} Rh3 {[%emt 0:01:38]} 66. e7 {[%emt 0:01:32]} Re3 {[%emt 0:00:06]} 67. Kxh2 {[%emt 0:00:29]} Nxe7 {[%emt 0:00:05]} 68. Rg5 {[%emt 0:00:13]} Nc6 {[%emt 0:01:54]} 69. Rxd5 {[%emt 0:00:14]} Rb3 {[%emt 0:00:06]} 70. Rd7 {[%emt 0:00:12]} Nxb4 {[%emt 0:00:22]} 71. Rxb7 {[%emt 0:00:14]} Rb2+ {[%emt 0:00:08]} 72. Kg3 {[%emt 0:00:14]} Nd3 {[%emt 0:00:14]} 73. Rb6 {[%emt 0:00:35]} Kg8 {[%emt 0:01:15]} 74. Kf3 {[%emt 0:00:31]} Ra2 {[%emt 0:01:34]} 75. Rxa6 {[%emt 0:00:20]} Nxc5 {[%emt 0:00:49]} 76. dxc5 {[%emt 0:00:01]} Kf7 {[%emt 0:00:14]} 77. Ke4 {[%emt 0:00:05]} Ke7 {[%emt 0:01:27]} 78. Kd5 {[%emt 0:00:06]} Kd7 {[%emt 0:00:08]} 79. Ra7+ {[%emt 0:00:06]} Kc8 {[%emt 0:00:05]} 80. Kc6 {[%emt 0:00:37]} Kb8 {[%emt 0:00:20]} 81. Ra6 {[%emt 0:00:29]} Ra1 {[%emt 0:00:53]} 82. Rb6+ {[%emt 0:01:03]} Ka7 {[%emt 0:01:16]} 83. Rb2 {[%emt 0:02:45]} Rxa5 {[%emt 0:01:34]} 84. Kd6 {[%emt 0:00:44]} Ra1 {[%emt 0:00:28]} 85. Kc7 {[%emt 0:00:19]} Ka8 {[%emt 0:00:57]} 86. c6 {[%emt 0:00:10]} Ra3 {[%emt 0:00:04]} 87. Kc8 {[%emt 0:00:21]} Ra6 {[%emt 0:00:54]} 88. c7 {[%emt 0:00:15]} 1-0

[Event "IIFL Wealth 4th Mumbai Open"]
[Site "Mumbai"]
[Date "2019.01.06"]
[Round "8"]
[White "Tanuj, Dayal"]
[Black "Vedant Nitin vekhande"]
[Result "1-0"]
[ECO "B51"]
[WhiteElo "1803"]
[BlackElo "1564"]
[Annotator "NA"]
[PlyCount "147"]
[EventDate "2018.12.30"]
[EventType "swiss"]
[EventCountry "IND"]
[SourceTitle "playchess.com"]
[Source "ChessBase"]
[SourceQuality "1"]
[TimeControl "40/5400+30:1800+30"]

1. e4 {[%emt 0:00:00]} c5 {[%emt 0:00:00]} 2. Nf3 {[%emt 0:00:00]} d6 {[%emt 0:00:00]} 3. Bb5+ {[%emt 0:00:00]} Nc6 {[%emt 0:00:00]} 4. O-O {[%emt 0:00:00]} Bd7 {[%emt 0:00:46]} 5. c3 {[%emt 0:00:29]} Nf6 {[%emt 0:00:14]} 6. Re1 {[%emt 0:00:42]} a6 {[%emt 0:01:24]} 7. Ba4 {[%emt 0:00:55]} e5 {[%emt 0:01:14]} 8. d3 {[%emt 0:04:05]} b5 {[%emt 0:00:25]} 9. Bb3 {[%emt 0:00:40]} Be7 {[%emt 0:00:29]} 10. Nbd2 {[%emt 0:05:01]} O-O {[%emt 0:01:08]} 11. Nf1 {[%emt 0:00:07]} Be6 {[%emt 0:00:08]} 12. Ne3 {[%emt 0:02:58]} Re8 {[%emt 0:03:44]} 13. Bd5 {[%emt 0:09:30]} Bxd5 {[%emt 0:05:18]} 14. exd5 {[%emt 0:01:30]} Nb8 {[%emt 0:00:18]} 15. Ng5 {[%emt 0:01:59]} Nbd7 {[%emt 0:04:58]} 16. Qf3 {[%emt 0:03:24]} Nf8 {[%emt 0:01:29]} 17. h4 {[%emt 0:09:32]} h6 {[%emt 0:02:35]} 18. Nh3 {[%emt 0:01:39]} Qd7 {[%emt 0:11:55]} 19. Nf5 {[%emt 0:02:19]} Rac8 {[%emt 0:12:14]} 20. c4 {[%emt 0:17:36]} Kh7 {[%emt 0:08:04]} 21. g4 {[%emt 0:03:07]} Ng8 {[%emt 0:03:10]} 22. g5 {[%emt 0:04:01]} Ng6 {[%emt 0:11:02]} 23. Kh2 {[%emt 0:07:03]} Bf8 {[%emt 0:08:01]} 24. Rg1 {[%emt 0:05:26]} bxc4 {[%emt 0:05:04]} 25. gxh6 {[%emt 0:01:58]} gxh6 {[%emt 0:00:21]} 26. Ng3 {[%emt 0:06:34]} Nxh4 {[%emt 0:01:59]} 27. Qh5 {[%emt 0:02:30]} Ng6 {[%emt 0:01:35]} 28. Ng5+ {[%emt 0:04:10]} Kg7 {[%emt 0:02:19]} 29. Ne6+ {[%emt 0:01:18]} fxe6 {[%emt 0:02:55]} 30. Nf5+ {[%emt 0:00:09]} Kh8 {[%emt 0:00:16]} 31. Qxg6 {[%emt 0:00:55]} Qh7 {[%emt 0:00:13]} 32. dxe6 {[%emt 0:00:28]} Qxg6 {[%emt 0:00:23]} 33. Rxg6 {[%emt 0:00:03]} Kh7 {[%emt 0:00:04]} 34. Rg2 {[%emt 0:01:08]} Rxe6 {[%emt 0:02:06]} 35. dxc4 {[%emt 0:00:11]} Ne7 {[%emt 0:00:48]} 36. Nxe7 {[%emt 0:00:45]} Bxe7 {[%emt 0:00:41]} 37. Be3 {[%emt 0:00:11]} Rg6 {[%emt 0:00:43]} 38. f4 Rxg2+ {[%emt 0:02:00]} 39. Kxg2 {[%emt 0:01:30]} Rg8+ {[%emt 0:00:02]} 40. Kf3 {[%emt 0:00:00]} Rf8 {[%emt 0:00:00]} 41. Ke4 {[%emt 0:00:29]} exf4 {[%emt 0:02:19]} 42. Bxf4 {[%emt 0:00:04]} Re8 {[%emt 0:01:45]} 43. Kd5 {[%emt 0:00:22]} Rf8 {[%emt 0:00:09]} 44. Bg3 {[%emt 0:01:13]} Rf3 45. Rg1 {[%emt 0:01:49]} h5 {[%emt 0:05:49]} 46. Ke6 {[%emt 0:05:09]} Re3+ {[%emt 0:00:41]} 47. Kf7 {[%emt 0:00:35]} h4 {[%emt 0:04:23]} 48. Rh1 {[%emt 0:02:07]} Rxg3 {[%emt 0:00:16]} 49. Kxe7 {[%emt 0:00:02]} h3 {[%emt 0:00:09]} 50. Kxd6 {[%emt 0:00:04]} Kg6 {[%emt 0:00:08]} 51. Kxc5 {[%emt 0:00:15]} Kg5 {[%emt 0:00:08]} 52. Kb6 {[%emt 0:00:46]} Kg4 {[%emt 0:00:29]} 53. Kxa6 {[%emt 0:00:53]} Rg2 {[%emt 0:00:22]} 54. b4 {[%emt 0:01:25]} Rxa2+ {[%emt 0:00:11]} 55. Kb6 {[%emt 0:00:01]} h2 {[%emt 0:00:33]} 56. c5 {[%emt 0:00:31]} Kf5 {[%emt 0:00:15]} 57. c6 {[%emt 0:00:23]} Rc2 {[%emt 0:04:58]} 58. c7 {[%emt 0:01:38]} Rc4 {[%emt 0:00:05]} 59. b5 {[%emt 0:00:07]} Ke6 {[%emt 0:00:21]} 60. Rxh2 {[%emt 0:00:03]} Kd7 {[%emt 0:00:10]} 61. Rd2+ {[%emt 0:00:38]} Ke6 {[%emt 0:02:25]} 62. Rd8 {[%emt 0:00:09]} Ke5 {[%emt 0:00:05]} 63. c8=Q {[%emt 0:00:10]} Rxc8 {[%emt 0:00:06]} 64. Rxc8 {[%emt 0:00:02]} Kd4 {[%emt 0:00:08]} 65. Kc6 {[%emt 0:00:08]} Kc4 {[%emt 0:00:07]} 66. b6 {[%emt 0:00:02]} Kd4 {[%emt 0:00:08]} 67. b7 {[%emt 0:00:08]} Ke4 {[%emt 0:00:08]} 68. b8=Q {[%emt 0:00:07]} Kd4 {[%emt 0:00:04]} 69. Qd6+ {[%emt 0:00:09]} Ke4 {[%emt 0:00:12]} 70. Re8+ {[%emt 0:00:05]} Kf5 {[%emt 0:00:13]} 71. Re5+ {[%emt 0:00:06]} Kf4 {[%emt 0:00:08]} 72. Qf6+ {[%emt 0:00:05]} Kg4 {[%emt 0:00:10]} 73. Rg5+ {[%emt 0:00:04]} Kh4 {[%emt 0:00:14]} 74. Qh6# {[%emt 0:00:34]} 1-0